bitfinex-derivatives/quotes_BTCF0:USTF0_20251228
["timestamp","ask_amount","ask_price","bid_price","bid_amount"]
[1766896509365,0.05717082,87828.0,87811.0,0.00017082]
[1766896510260,0.05717082,87828.0,87812.0,0.0113959]
[1766896511565,0.0113942,87825.0,87811.0,0.00017082]
[1766896511768,0.05717082,87828.0,87811.0,0.01156682]
[1766896511769,0.11423799,87821.0,87811.0,0.01156682]
[1766896512660,0.11423799,87821.0,87811.0,0.00017082]
[1766896512859,0.057,87823.0,87811.0,0.00017082]
[1766896515863,0.11423799,87821.0,87811.0,0.00017082]
[1766896518169,0.057,87823.0,87811.0,0.00017082]
[1766896518470,0.11423799,87821.0,87811.0,0.00017082]
[1766896525170,0.11423799,87821.0,87811.0,0.01156682]
[1766896525570,0.11423799,87821.0,87811.0,0.00017082]
[1766896527570,0.057,87823.0,87811.0,0.00017082]
[1766896528070,0.11423799,87821.0,87811.0,0.00017082]
[1766896529771,0.057,87823.0,87811.0,0.00017082]
[1766896530069,0.02497327,87822.0,87812.0,0.0113959]
[1766896530267,0.057,87823.0,87812.0,0.0113959]
[1766896530463,0.02514872,87822.0,87812.0,0.0113959]
[1766896530669,0.057,87823.0,87812.0,0.0113959]
[1766896530871,0.02514872,87822.0,87812.0,0.0113959]
[1766896531171,0.02514872,87821.0,87812.0,0.0113959]
[1766896531471,0.02514872,87820.0,87812.0,0.0113959]
[1766896531771,0.057,87823.0,87812.0,0.0113959]
[1766896531965,0.02515188,87822.0,87812.0,0.0113959]
[1766896532170,0.02515188,87821.0,87812.0,0.0113959]
[1766896532373,0.02515188,87820.0,87812.0,0.0113959]
[1766896532568,0.057,87823.0,87812.0,0.0113959]
[1766896532776,0.02515567,87822.0,87812.0,0.0113959]
[1766896533072,0.02515567,87821.0,87812.0,0.0113959]
[1766896533272,0.02515567,87820.0,87812.0,0.0113959]
[1766896533473,0.02515567,87819.0,87812.0,0.0113959]
[1766896533675,0.057,87823.0,87812.0,0.0113959]
[1766896533972,0.02516024,87822.0,87812.0,0.0113959]
[1766896534265,0.02516024,87821.0,87812.0,0.0113959]
[1766896534466,0.02516024,87820.0,87812.0,0.0113959]
[1766896534671,0.02516024,87819.0,87812.0,0.0113959]
[1766896534871,0.057,87823.0,87812.0,0.0113959]
[1766896535074,0.02516583,87822.0,87812.0,0.0113959]
[1766896535272,0.02516583,87821.0,87812.0,0.0113959]
[1766896535573,0.02516583,87820.0,87812.0,0.0113959]
[1766896535774,0.02516583,87819.0,87811.0,0.00017082]
[1766896535974,0.02516583,87818.0,87811.0,0.00017082]
[1766896536179,0.057,87823.0,87811.0,0.00017082]
[1766896536370,0.02517284,87822.0,87811.0,0.00017082]
[1766896536568,0.02517284,87821.0,87811.0,0.00017082]
[1766896536771,0.02517284,87820.0,87812.0,0.0113959]
[1766896536975,0.02517284,87819.0,87812.0,0.0113959]
[1766896537176,0.02517284,87818.0,87812.0,0.0113959]
[1766896537377,0.02517284,87817.0,87812.0,0.0113959]
[1766896537679,4e-08,87816.0,87812.0,0.0113959]
[1766896537975,0.057,87823.0,87812.0,0.0113959]
[1766896538882,0.057,87823.0,87790.0,0.07457651]
[1766896539177,0.057,87823.0,87805.0,0.0113967]
[1766896539370,0.057,87823.0,87796.0,0.15388]
[1766896539769,0.0113946,87822.0,87796.0,0.15388]
[1766896540462,0.0113946,87822.0,87803.0,0.011397]
[1766896540867,0.0113946,87822.0,87791.0,0.0113986]
[1766896540868,0.057,87823.0,87797.0,0.0113978]
[1766896541067,0.057,87823.0,87773.0,0.24447862]
[1766896541068,0.0113955,87816.0,87784.0,0.06148114]
[1766896541377,0.00017082,87809.0,87788.0,0.11388354]
[1766896541579,0.00017082,87809.0,87786.0,0.15388]
[1766896541870,0.00017082,87809.0,87786.0,0.26776224]
[1766896542068,0.00017082,87809.0,87786.0,0.15388]
[1766896542269,0.00017082,87809.0,87795.0,0.011398]
[1766896542675,0.00017082,87809.0,87795.0,0.068398]
[1766896543680,0.00017082,87809.0,87791.0,0.0113985]
[1766896543888,0.00017082,87809.0,87793.0,0.0113983]
[1766896545280,0.00017082,87809.0,87790.0,0.15388]
[1766896546187,0.00017082,87809.0,87794.0,0.0113982]
[1766896549585,0.02505925,87808.0,87794.0,0.0113982]
[1766896549787,0.00017082,87809.0,87794.0,0.0113982]
[1766896549987,0.02505925,87808.0,87794.0,0.0113982]
[1766896550290,0.00017082,87809.0,87794.0,0.0113982]
[1766896551091,0.02505676,87808.0,87794.0,0.0113982]
[1766896551388,0.00017082,87809.0,87794.0,0.0113982]
[1766896555897,0.00017082,87809.0,87791.0,0.0113986]
[1766896556190,0.00017082,87809.0,87785.0,0.00490951]
[1766896556394,0.00017082,87809.0,87788.0,0.011399]
[1766896556986,0.00017082,87809.0,87790.0,0.0113986]
[1766896557393,0.03644641,87808.0,87783.0,0.0113996]
[1766896557694,0.0113968,87805.0,87783.0,0.0113996]
[1766896557895,0.02505001,87804.0,87783.0,0.0113996]
[1766896558092,0.02505001,87804.0,87786.0,0.0113992]
[1766896558297,0.15388,87806.0,87786.0,0.0113992]
[1766896558489,0.02504933,87805.0,87786.0,0.0113992]
[1766896558685,0.15388,87806.0,87786.0,0.0113992]
[1766896558889,0.02504933,87805.0,87786.0,0.0113992]
[1766896559085,0.15388,87806.0,87786.0,0.0113992]
[1766896559292,0.02504933,87805.0,87786.0,0.0113992]
[1766896559491,0.15388,87806.0,87786.0,0.0113992]
[1766896559690,0.02504799,87805.0,87786.0,0.0113992]
[1766896559892,0.15388,87806.0,87786.0,0.0113992]
[1766896560091,0.025048,87805.0,87786.0,0.0113992]
[1766896560294,0.1652767,87806.0,87786.0,0.0113992]
[1766896560595,0.02503135,87805.0,87786.0,0.0113992]
[1766896560801,0.1652767,87806.0,87782.0,0.0113997]
[1766896561101,0.02503135,87805.0,87782.0,0.0113997]
[1766896561296,0.0113971,87803.0,87778.0,0.0114002]
[1766896561600,0.0113977,87799.0,87773.0,0.01367942]
[1766896561800,0.02503135,87798.0,87773.0,0.01367942]
[1766896561995,0.08207135,87797.0,87776.0,0.0114005]
[1766896562197,0.12191135,87796.0,87776.0,0.0114005]
[1766896562402,0.09688,87796.0,87773.0,0.00227862]
[1766896563002,0.09688,87796.0,87779.0,0.0114001]
[1766896563495,0.02501574,87795.0,87782.0,0.0113997]
[1766896563695,0.09688,87796.0,87782.0,0.0113997]
[1766896563896,0.02501575,87795.0,87782.0,0.0113997]
[1766896564191,0.0250158,87794.0,87782.0,0.0113997]
[1766896564403,0.09688,87796.0,87782.0,0.0113997]
[1766896564603,0.02501334,87795.0,87782.0,0.0113997]
[1766896564904,0.02501334,87794.0,87782.0,0.0113997]
[1766896565098,0.09688,87796.0,87782.0,0.0113997]
[1766896565299,0.0250134,87795.0,87782.0,0.0113997]
[1766896565603,0.0250134,87794.0,87782.0,0.0113997]
[1766896565797,0.09688,87796.0,87782.0,0.0113997]
[1766896566000,0.02501221,87795.0,87782.0,0.0113997]
[1766896566188,0.02501221,87794.0,87778.0,0.0114003]
[1766896566388,0.09688,87796.0,87778.0,0.0114003]
[1766896566594,0.02501206,87795.0,87778.0,0.0114003]
[1766896566799,0.02501206,87794.0,87778.0,0.0114003]
[1766896567003,0.09688,87796.0,87778.0,0.0114003]
[1766896567303,0.02501206,87795.0,87778.0,0.0114003]
[1766896567502,0.02501206,87794.0,87778.0,0.0114003]
[1766896567798,0.09688,87796.0,87778.0,0.0114003]
[1766896567799,0.02501206,87793.0,87778.0,0.0114003]
[1766896568003,0.09688,87796.0,87778.0,0.0114003]
[1766896568203,0.02501294,87795.0,87778.0,0.0114003]
[1766896568399,0.02501294,87794.0,87778.0,0.0114003]
[1766896568595,0.02501294,87793.0,87778.0,0.0114003]
[1766896568793,0.02501294,87792.0,87778.0,0.0114003]
[1766896569002,0.09688,87796.0,87778.0,0.0114003]
[1766896569197,0.0250149,87795.0,87778.0,0.0114003]
[1766896569397,0.0250149,87794.0,87778.0,0.0114003]
[1766896569696,0.0250149,87793.0,87781.0,0.0113999]
[1766896569892,0.09688,87796.0,87784.0,0.0113995]
[1766896577417,0.09688,87796.0,87781.0,0.0113999]
[1766896582017,0.02492859,87795.0,87781.0,0.0113999]
[1766896582224,0.02492859,87794.0,87781.0,0.0113999]
[1766896582426,0.02492859,87793.0,87781.0,0.0113999]
[1766896582723,0.09688,87796.0,87781.0,0.0113999]
[1766896582724,0.02492859,87792.0,87781.0,0.0113999]
[1766896582924,0.02492859,87791.0,87781.0,0.0113999]
[1766896583127,0.02492859,87790.0,87781.0,0.0113999]
[1766896583328,0.02492859,87789.0,87781.0,0.0113999]
[1766896583517,0.02492859,87788.0,87781.0,0.0113999]
[1766896583717,0.09688,87796.0,87781.0,0.0113999]
[1766896583918,0.02493578,87795.0,87781.0,0.0113999]
[1766896584126,0.02493578,87794.0,87781.0,0.0113999]
[1766896584323,0.02493578,87793.0,87781.0,0.0113999]
[1766896584520,0.02493578,87792.0,87783.0,0.0113995]
[1766896584720,0.02493578,87791.0,87783.0,0.0113995]
[1766896584920,0.02493578,87790.0,87783.0,0.0113995]
[1766896585220,0.02493578,87789.0,87783.0,0.0113995]
[1766896585419,0.02493578,87788.0,87783.0,0.0113995]
[1766896585620,0.02493578,87787.0,87783.0,0.0113995]
[1766896585829,0.09688,87796.0,87783.0,0.0113995]
[1766896586024,0.0249465,87795.0,87783.0,0.0113995]
[1766896586227,0.0249465,87794.0,87783.0,0.0113995]
[1766896586426,0.0249465,87793.0,87783.0,0.0113995]
[1766896586621,0.09688,87796.0,87783.0,0.0113995]
[1766896586622,0.0249465,87792.0,87783.0,0.0113995]
[1766896586821,0.0249465,87791.0,87783.0,0.0113995]
[1766896587028,0.0249465,87790.0,87783.0,0.0113995]
[1766896587228,0.0249465,87789.0,87783.0,0.0113995]
[1766896587424,0.0249465,87788.0,87783.0,0.0113995]
[1766896587623,0.09688,87796.0,87783.0,0.0113995]
[1766896591236,0.09688,87796.0,87780.0,0.0114]
[1766896596441,0.0113981,87795.0,87780.0,0.0114]
[1766896598235,0.09688,87796.0,87780.0,0.0114]
[1766896598947,0.09688,87796.0,87782.0,0.0113997]
[1766896599538,0.02462835,87795.0,87782.0,0.0113997]
[1766896599737,0.02462835,87794.0,87782.0,0.0113997]
[1766896599940,0.02462835,87793.0,87782.0,0.0113997]
[1766896600140,0.08166835,87792.0,87782.0,0.0113997]
[1766896600341,0.02462835,87791.0,87779.0,0.0114002]
[1766896600544,0.02462835,87791.0,87781.0,0.0113998]
[1766896607551,0.05704,87792.0,87781.0,0.0113998]
[1766896608048,0.02462892,87791.0,87781.0,0.0113998]
[1766896608349,0.02462892,87790.0,87781.0,0.0113998]
[1766896608550,0.02462892,87789.0,87781.0,0.0113998]
[1766896608747,0.02462892,87788.0,87781.0,0.0113998]
[1766896609046,0.02462892,87787.0,87781.0,0.0113998]
[1766896609244,0.02462892,87786.0,87781.0,0.0113998]
[1766896609446,0.05704,87792.0,87781.0,0.0113998]
[1766896609646,0.02462892,87791.0,87781.0,0.0113998]
[1766896609852,0.02462892,87790.0,87781.0,0.0113998]
[1766896610055,0.02462892,87789.0,87781.0,0.0113998]
[1766896610353,0.02462892,87788.0,87781.0,0.0113998]
[1766896610542,0.02462892,87787.0,87781.0,0.0113998]
[1766896610852,0.02462892,87786.0,87781.0,0.0113998]
[1766896611051,0.05704,87792.0,87781.0,0.0113998]
[1766896611351,0.02462892,87791.0,87781.0,0.0113998]
[1766896611552,0.02462892,87790.0,87781.0,0.0113998]
[1766896611752,0.02462892,87789.0,87781.0,0.0113998]
[1766896611948,0.02462892,87788.0,87781.0,0.0113998]
[1766896612149,0.02462892,87787.0,87781.0,0.0113998]
[1766896612448,0.02462892,87786.0,87781.0,0.0113998]
[1766896612752,0.05704,87792.0,87781.0,0.0113998]
[1766896612955,0.02462938,87791.0,87781.0,0.0113998]
[1766896613252,0.02462938,87790.0,87781.0,0.0113998]
[1766896613445,0.02462938,87789.0,87781.0,0.0113998]
[1766896613649,0.02462938,87788.0,87781.0,0.0113998]
[1766896613948,0.02462938,87787.0,87781.0,0.0113998]
[1766896614149,0.02462938,87786.0,87781.0,0.0113998]
[1766896614447,0.05704,87792.0,87781.0,0.0113998]
[1766896614647,0.02462938,87791.0,87781.0,0.0113998]
[1766896614846,0.02462938,87790.0,87781.0,0.0113998]
[1766896615054,0.02462938,87789.0,87781.0,0.0113998]
[1766896615256,0.02462938,87788.0,87781.0,0.0113998]
[1766896615555,0.02462938,87787.0,87781.0,0.0113998]
[1766896615854,0.02462938,87786.0,87781.0,0.0113998]
[1766896616056,0.05704,87792.0,87781.0,0.0113998]
[1766896616257,0.02462937,87791.0,87781.0,0.0113998]
[1766896616456,0.02462937,87790.0,87781.0,0.0113998]
[1766896616755,0.02462937,87789.0,87781.0,0.0113998]
[1766896616944,0.02462937,87788.0,87781.0,0.0113998]
[1766896617144,0.02462937,87787.0,87781.0,0.0113998]
[1766896617348,0.02462937,87786.0,87781.0,0.0113998]
[1766896617546,0.05704,87792.0,87781.0,0.0113998]
[1766896617850,0.0246294,87791.0,87781.0,0.0113998]
[1766896618051,0.0246294,87790.0,87781.0,0.0113998]
[1766896618252,0.0246294,87789.0,87781.0,0.0113998]
[1766896618451,0.0246294,87788.0,87781.0,0.0113998]
[1766896618652,0.0246294,87787.0,87781.0,0.0113998]
[1766896618852,0.0246294,87786.0,87781.0,0.0113998]
[1766896619052,0.05704,87792.0,87781.0,0.0113998]
[1766896619260,0.0246294,87791.0,87781.0,0.0113998]
[1766896619459,0.0246294,87790.0,87781.0,0.0113998]
[1766896619660,0.0246294,87789.0,87781.0,0.0113998]
[1766896619859,0.0246294,87788.0,87781.0,0.0113998]
[1766896620062,0.0246294,87788.0,87774.0,0.09692]
[1766896620063,0.05704,87792.0,87780.0,0.0114]
[1766896620262,0.05704,87792.0,87782.0,0.0113997]
[1766896630962,0.05704,87792.0,87784.0,0.0113995]
[1766896632065,0.02452093,87791.0,87784.0,0.0113995]
[1766896632264,0.02452093,87790.0,87784.0,0.0113995]
[1766896632464,0.02452093,87789.0,87784.0,0.0113995]
[1766896632665,3e-08,87792.0,87779.0,0.11435131]
[1766896632854,3e-08,87792.0,87780.0,0.11435131]
[1766896633257,0.00017082,87794.0,87780.0,0.11435131]
[1766896633457,0.00017082,87794.0,87789.0,0.0113988]
[1766896633664,0.00017082,87794.0,87788.0,0.0113989]
[1766896634170,2e-08,87794.0,87788.0,0.0113989]
[1766896634664,0.11435131,87810.0,87780.0,0.11435131]
[1766896634665,0.06157308,87801.0,87784.0,0.11435131]
[1766896634967,0.0569543,87852.0,87790.0,0.11435131]
[1766896634968,0.05704,87807.0,87790.0,0.11435131]
[1766896635972,2e-08,87807.0,87803.0,0.011397]
[1766896636163,2e-08,87807.0,87790.0,0.11452213]
[1766896636164,2e-08,87807.0,87806.0,0.0113967]
[1766896636863,2e-08,87807.0,87800.0,0.0113974]
[1766896637456,2e-08,87807.0,87796.0,0.03081]
[1766896637668,2e-08,87807.0,87791.0,0.0113986]
[1766896637865,2e-08,87807.0,87792.0,0.05704]
[1766896638069,2e-08,87807.0,87793.0,0.05704]
[1766896638863,2e-08,87807.0,87791.0,0.0113986]
[1766896639057,2e-08,87807.0,87792.0,0.05704]
[1766896641161,0.0113967,87806.0,87792.0,0.05704]
[1766896641569,0.0113967,87806.0,87790.0,0.11452213]
[1766896641773,0.0113967,87806.0,87791.0,0.05704]
[1766896644669,0.02400175,87805.0,87790.0,0.11452213]
[1766896644972,0.0113967,87806.0,87792.0,0.05704]
[1766896645171,0.02400175,87805.0,87792.0,0.05704]
[1766896645370,0.0113967,87806.0,87792.0,0.05704]
[1766896645573,0.02400069,87805.0,87792.0,0.05704]
[1766896645775,2e-08,87807.0,87792.0,0.05704]
[1766896646075,0.0240007,87806.0,87792.0,0.05704]
[1766896646277,0.0240007,87805.0,87792.0,0.05704]
[1766896646469,2e-08,87807.0,87792.0,0.05704]
[1766896646670,0.02399994,87806.0,87792.0,0.05704]
[1766896646970,0.02399994,87805.0,87792.0,0.05704]
[1766896647170,2e-08,87807.0,87792.0,0.05704]
[1766896647372,0.02399964,87806.0,87792.0,0.05704]
[1766896647575,0.02399964,87805.0,87792.0,0.05704]
[1766896647774,2e-08,87807.0,87792.0,0.05704]
[1766896648073,0.02399942,87806.0,87792.0,0.05704]
[1766896648274,0.02399942,87805.0,87792.0,0.05704]
[1766896648465,2e-08,87807.0,87792.0,0.05704]
[1766896648666,0.02399917,87806.0,87792.0,0.05704]
[1766896648975,0.02399917,87805.0,87792.0,0.05704]
[1766896649176,2e-08,87807.0,87792.0,0.05704]
[1766896649477,0.02399917,87806.0,87791.0,0.0113985]
[1766896649668,0.02399917,87805.0,87792.0,0.05704]
[1766896649867,2e-08,87807.0,87792.0,0.05704]
[1766896650068,0.02399919,87806.0,87792.0,0.05704]
[1766896650268,2e-08,87807.0,87792.0,0.05704]
[1766896653570,0.01139662,87807.0,87792.0,0.05704]
[1766896661883,0.0113969,87805.0,87790.0,0.00017082]
[1766896662084,0.0113971,87803.0,87791.0,0.05704]
[1766896663079,2e-08,87807.0,87791.0,0.05704]
[1766896663584,0.09688,87806.0,87790.0,0.00017082]
[1766896664189,0.0113973,87802.0,87790.0,0.00017082]
[1766896664888,0.0113975,87800.0,87784.0,0.0684394]
[1766896665089,0.0113975,87800.0,87784.0,0.05704]
[1766896672793,0.0113971,87803.0,87787.0,0.0113991]
[1766896674293,0.05704,87804.0,87787.0,0.0113991]
[1766896675296,0.05704,87804.0,87789.0,0.0113988]
[1766896680302,0.02415513,87803.0,87789.0,0.0113988]
[1766896680599,0.02415513,87802.0,87789.0,0.0113988]
[1766896680798,0.02415513,87801.0,87789.0,0.0113988]
[1766896680993,0.02415513,87800.0,87789.0,0.0113988]
[1766896681201,0.02415513,87799.0,87789.0,0.0113988]
[1766896681401,0.02415513,87798.0,87789.0,0.0113988]
[1766896681596,0.02415513,87797.0,87789.0,0.0113988]
[1766896681904,0.02415513,87796.0,87789.0,0.0113988]
[1766896682203,0.02415513,87795.0,87789.0,0.0113988]
[1766896682396,0.05704,87804.0,87789.0,0.0113988]
[1766896682597,0.02415644,87803.0,87789.0,0.0113988]
[1766896682800,0.02415644,87802.0,87789.0,0.0113988]
[1766896682997,0.02415644,87801.0,87789.0,0.0113988]
[1766896683198,0.02415644,87800.0,87789.0,0.0113988]
[1766896683398,0.02415644,87799.0,87789.0,0.0113988]
[1766896683601,0.02415644,87798.0,87789.0,0.0113988]
[1766896683802,0.02415644,87797.0,87789.0,0.0113988]
[1766896684000,0.02415644,87796.0,87789.0,0.0113988]
[1766896684197,0.02415644,87795.0,87789.0,0.0113988]
[1766896684400,0.05704,87804.0,87789.0,0.0113988]
[1766896684604,0.0241605,87803.0,87789.0,0.0113988]
[1766896684803,0.0241605,87802.0,87789.0,0.0113988]
[1766896685000,0.0241605,87801.0,87789.0,0.0113988]
[1766896685201,0.0241605,87800.0,87789.0,0.0113988]
[1766896685402,0.0241605,87799.0,87789.0,0.0113988]
[1766896685706,0.0241605,87798.0,87789.0,0.0113988]
[1766896685904,0.0241605,87797.0,87789.0,0.0113988]
[1766896686106,0.0241605,87796.0,87789.0,0.0113988]
[1766896686299,0.0241605,87795.0,87789.0,0.0113988]
[1766896686499,0.05704,87804.0,87789.0,0.0113988]
[1766896686709,0.02416342,87803.0,87789.0,0.0113988]
[1766896686910,0.02416342,87802.0,87789.0,0.0113988]
[1766896687214,0.02416342,87801.0,87789.0,0.0113988]
[1766896687414,0.02416342,87800.0,87789.0,0.0113988]
[1766896687612,0.02416342,87799.0,87789.0,0.0113988]
[1766896687914,0.02416342,87798.0,87789.0,0.0113988]
[1766896688114,0.02416342,87797.0,87789.0,0.0113988]
[1766896688312,0.02416342,87796.0,87789.0,0.0113988]
[1766896688613,2e-08,87795.0,87784.0,0.05704]
[1766896688814,0.05704,87804.0,87784.0,0.05704]
[1766896689411,0.05704,87804.0,87793.0,0.0113983]
[1766896689609,0.05704,87804.0,87795.0,0.011398]
[1766896693719,0.05704,87804.0,87797.0,0.0113978]
[1766896693915,0.05704,87805.0,87797.0,0.0113978]
[1766896695514,2e-08,87807.0,87786.0,0.0113992]
[1766896695720,2e-08,87810.0,87806.0,0.0113967]
[1766896695920,0.05704,87811.0,87791.0,0.1082786]
[1766896696120,0.05704,87811.0,87804.0,0.0113968]
[1766896696519,0.05704,87814.0,87804.0,0.0113968]
[1766896700625,0.02398779,87813.0,87804.0,0.0113968]
[1766896700924,0.02398779,87812.0,87804.0,0.0113968]
[1766896701125,0.02398779,87811.0,87804.0,0.0113968]
[1766896701329,9e-08,87810.0,87804.0,0.0113968]
[1766896701515,0.05704,87814.0,87804.0,0.0113968]
[1766896702923,0.05704,87814.0,87801.0,0.0113972]
[1766896703725,0.05704,87814.0,87800.0,0.00017082]
[1766896711128,0.0684357,87814.0,87800.0,0.00017082]
[1766896716032,0.0684357,87814.0,87800.0,0.11446159]
[1766896724943,0.0684357,87814.0,87801.0,0.057]
[1766896728646,0.05704,87814.0,87801.0,0.057]
[1766896729344,0.02406213,87813.0,87801.0,0.057]
[1766896729545,0.02406213,87812.0,87801.0,0.057]
[1766896729744,0.02406213,87811.0,87801.0,0.057]
[1766896730042,0.02406213,87810.0,87801.0,0.057]
[1766896730246,0.02406213,87809.0,87801.0,0.057]
[1766896730445,0.02406213,87808.0,87801.0,0.057]
[1766896730646,0.02406213,87807.0,87801.0,0.057]
[1766896730848,0.02406213,87806.0,87801.0,0.057]
[1766896731045,0.02406213,87805.0,87801.0,0.057]
[1766896731247,0.05704,87814.0,87801.0,0.057]
[1766896731448,0.02406645,87813.0,87801.0,0.057]
[1766896731650,0.02406645,87812.0,87801.0,0.057]
[1766896731946,0.02406645,87811.0,87801.0,0.057]
[1766896732152,0.02406645,87810.0,87801.0,0.057]
[1766896732347,0.02406645,87809.0,87801.0,0.057]
[1766896732539,0.02406645,87808.0,87801.0,0.057]
[1766896732741,0.02406645,87807.0,87801.0,0.057]
[1766896732951,0.02406645,87806.0,87801.0,0.057]
[1766896733250,0.02406645,87805.0,87801.0,0.057]
[1766896733451,0.05704,87814.0,87801.0,0.057]
[1766896733750,0.02406676,87813.0,87801.0,0.057]
[1766896733951,0.02406676,87812.0,87801.0,0.057]
[1766896734247,0.02406676,87811.0,87801.0,0.057]
[1766896734447,0.02406676,87810.0,87801.0,0.057]
[1766896734648,0.02406676,87809.0,87801.0,0.057]
[1766896734843,0.02406676,87808.0,87801.0,0.057]
[1766896735044,0.02406676,87807.0,87801.0,0.057]
[1766896735244,0.02406676,87806.0,87801.0,0.057]
[1766896735445,0.02406676,87805.0,87801.0,0.057]
[1766896735646,0.05704,87814.0,87801.0,0.057]
[1766896735853,0.02406676,87813.0,87801.0,0.057]
[1766896736053,0.02406676,87812.0,87801.0,0.057]
[1766896736349,0.02406676,87811.0,87801.0,0.057]
[1766896736549,0.02406676,87810.0,87801.0,0.057]
[1766896736748,0.02406676,87809.0,87801.0,0.057]
[1766896736948,0.02406676,87808.0,87801.0,0.057]
[1766896737149,0.02406676,87807.0,87801.0,0.057]
[1766896737351,0.02406676,87806.0,87801.0,0.057]
[1766896737551,0.02406676,87805.0,87801.0,0.057]
[1766896737849,0.05704,87814.0,87801.0,0.057]
[1766896738152,0.02406677,87813.0,87801.0,0.057]
[1766896738347,0.02406677,87812.0,87801.0,0.057]
[1766896738548,0.02406677,87811.0,87801.0,0.057]
[1766896738748,0.02406677,87810.0,87801.0,0.057]
[1766896739050,0.02406677,87809.0,87801.0,0.057]
[1766896739347,0.02406677,87808.0,87801.0,0.057]
[1766896739547,0.02406677,87807.0,87801.0,0.057]
[1766896739748,0.02406677,87806.0,87801.0,0.057]
[1766896739949,0.02406677,87805.0,87801.0,0.057]
[1766896740150,0.05704,87814.0,87801.0,0.057]
[1766896740354,0.02406677,87813.0,87801.0,0.057]
[1766896740546,0.02406677,87812.0,87801.0,0.057]
[1766896740744,0.02406677,87811.0,87801.0,0.057]
[1766896740944,0.02406677,87810.0,87801.0,0.057]
[1766896741143,0.02406677,87809.0,87801.0,0.057]
[1766896741348,0.02406677,87808.0,87801.0,0.057]
[1766896741544,0.02406677,87807.0,87801.0,0.057]
[1766896741744,0.02406677,87806.0,87801.0,0.057]
[1766896742044,0.02406677,87805.0,87801.0,0.057]
[1766896742245,0.05704,87814.0,87801.0,0.057]
[1766896742445,0.02425752,87813.0,87801.0,0.057]
[1766896742744,0.02425752,87812.0,87801.0,0.057]
[1766896742944,0.02425752,87811.0,87801.0,0.057]
[1766896743243,0.02425752,87810.0,87801.0,0.057]
[1766896743445,0.02425752,87809.0,87801.0,0.057]
[1766896743645,0.02425752,87808.0,87801.0,0.057]
[1766896743841,2e-08,87807.0,87804.0,0.0113968]
[1766896744047,0.057,87818.0,87807.0,0.0113965]
[1766896744452,0.11429077,87830.0,87807.0,0.0113965]
[1766896744652,0.15388,87829.0,87807.0,0.0113965]
[1766896744859,0.11429077,87830.0,87807.0,0.0113965]
[1766896745045,0.00017082,87827.0,87807.0,0.0113965]
[1766896745249,0.00017082,87827.0,87806.0,0.057]
[1766896745250,0.0113946,87822.0,87806.0,0.057]
[1766896745451,0.057,87821.0,87806.0,0.057]
[1766896750360,0.057,87821.0,87806.0,0.0683966]
[1766896754463,0.057,87821.0,87810.0,0.11429077]
[1766896755262,0.057,87821.0,87806.0,0.0683966]
[1766896755863,0.02409443,87820.0,87806.0,0.0683966]
[1766896756059,0.02409443,87819.0,87806.0,0.0683966]
[1766896756261,0.02409443,87818.0,87806.0,0.0683966]
[1766896756456,0.02409443,87817.0,87806.0,0.0683966]
[1766896756761,0.02409443,87816.0,87806.0,0.0683966]
[1766896756961,0.02409443,87815.0,87806.0,0.0683966]
[1766896757263,0.057,87821.0,87808.0,0.0113963]
[1766896758668,0.057,87821.0,87810.0,0.11429077]
[1766896758969,0.057,87821.0,87810.0,0.12568687]
[1766896759461,0.057,87826.0,87810.0,0.11429077]
[1766896761167,0.0113946,87823.0,87810.0,0.11429077]
[1766896764176,0.0683941,87826.0,87810.0,0.11429077]
[1766896765580,0.0683941,87826.0,87810.0,0.12568677]
[1766896765876,0.0113945,87823.0,87810.0,0.11429077]
[1766896767477,0.0113948,87821.0,87803.0,0.011397]
[1766896767676,0.0113948,87821.0,87800.0,0.11446159]
[1766896767677,0.0113944,87824.0,87805.0,0.0113967]
[1766896769380,0.02398409,87823.0,87805.0,0.0113967]
[1766896769678,0.02398409,87822.0,87805.0,0.0113967]
[1766896769979,0.02398409,87821.0,87805.0,0.0113967]
[1766896770280,0.0113944,87824.0,87805.0,0.0113967]
[1766896770979,0.057,87826.0,87804.0,0.15388]
[1766896771278,0.0113952,87818.0,87804.0,0.15388]
[1766896774182,0.0113948,87821.0,87804.0,0.15388]
[1766896781688,0.02401302,87820.0,87804.0,0.15388]
[1766896781888,0.02401302,87819.0,87804.0,0.15388]
[1766896782089,0.02401302,87818.0,87804.0,0.15388]
[1766896782289,0.02401302,87817.0,87804.0,0.15388]
[1766896782482,0.02401302,87816.0,87804.0,0.15388]
[1766896782681,0.02401302,87815.0,87804.0,0.15388]
[1766896782877,0.0113948,87821.0,87804.0,0.15388]
[1766896783080,0.02401381,87820.0,87804.0,0.15388]
[1766896783388,0.02401381,87819.0,87804.0,0.15388]
[1766896783582,0.02401381,87818.0,87804.0,0.15388]
[1766896783784,0.02401381,87817.0,87804.0,0.15388]
[1766896783983,0.02401381,87816.0,87804.0,0.15388]
[1766896784183,0.02401381,87815.0,87804.0,0.15388]
[1766896784391,0.0113948,87821.0,87804.0,0.15388]
[1766896784589,0.02401581,87820.0,87804.0,0.15388]
[1766896784888,0.02401581,87819.0,87804.0,0.15388]
[1766896785093,0.02401581,87818.0,87804.0,0.15388]
[1766896785386,0.02401581,87817.0,87804.0,0.15388]
[1766896785587,0.02401581,87816.0,87804.0,0.15388]
[1766896785787,0.02401581,87815.0,87804.0,0.15388]
[1766896785983,0.0113948,87821.0,87804.0,0.15388]
[1766896786184,0.0240171,87820.0,87804.0,0.15388]
[1766896786384,0.0240171,87819.0,87804.0,0.15388]
[1766896786583,0.0240171,87818.0,87804.0,0.15388]
[1766896786781,0.0240171,87817.0,87804.0,0.15388]
[1766896786984,0.0240171,87816.0,87804.0,0.15388]
[1766896787183,0.0240171,87815.0,87804.0,0.15388]
[1766896787392,0.0113948,87821.0,87804.0,0.15388]
[1766896787588,0.02402043,87820.0,87804.0,0.15388]
[1766896787789,0.02402043,87819.0,87804.0,0.15388]
[1766896788000,0.02402043,87818.0,87804.0,0.15388]
[1766896788190,0.02402043,87817.0,87804.0,0.15388]
[1766896788392,0.02402043,87816.0,87804.0,0.15388]
[1766896788590,0.02402043,87815.0,87804.0,0.15388]
[1766896788792,0.02402043,87814.0,87804.0,0.15388]
[1766896789095,0.0113948,87821.0,87804.0,0.15388]
[1766896789280,0.02402291,87820.0,87804.0,0.15388]
[1766896789486,0.0113948,87821.0,87804.0,0.15388]
[1766896789487,0.02402291,87819.0,87804.0,0.15388]
[1766896789786,0.02402291,87818.0,87804.0,0.15388]